fUST/lending_fUST_20251027
["ID","MTS","AMOUNT","RATE_DAILY","PERIOD"]
[392500295,1761573043797,-1148.1,0.00015731,2]
[392500296,1761573043910,-3103.74054438,0.00015731,2]
[392500302,1761573046815,-1378.79,0.00015731,2]
[392500303,1761573046829,-683.4258917,0.00015731,2]
[392500309,1761573240589,196.0,0.00014959,2]
[392500310,1761573241619,3863.5748429,0.00014802,2]
[392500311,1761573249724,196.0,0.00014959,2]
[392500312,1761573260361,576.33,0.00017,7]
[392500313,1761573266265,196.0,0.00014959,2]
[392500315,1761573275078,196.0,0.00014959,2]
[392500316,1761573292073,196.0,0.00014959,2]
[392500317,1761573300093,196.0,0.00014959,2]
[392500318,1761573316139,196.0,0.00014959,2]
[392500319,1761573325150,196.0,0.00014959,2]
[392500320,1761573340767,196.0,0.00014959,2]
[392500321,1761573349010,196.0,0.00014959,2]
[392500322,1761573365213,196.0,0.00014959,2]
[392500323,1761573373896,196.0,0.00014959,2]
[392500324,1761573390094,196.0,0.00014959,2]
[392500325,1761573398215,196.0,0.00014959,2]
[392500345,1761573413667,196.0,0.00014959,2]
[392500346,1761573421978,196.0,0.00014959,2]
[392500347,1761573437554,196.0,0.00014959,2]
[392500348,1761573445528,196.0,0.00014959,2]
[392500349,1761573460963,196.0,0.00014959,2]
[392500350,1761573469161,196.0,0.00014959,2]
[392500351,1761573484981,196.0,0.00014959,2]
[392500353,1761573492981,196.0,0.00014959,2]
[392500355,1761573508432,196.0,0.00014959,2]
[392500356,1761573517003,196.0,0.00014959,2]
[392500358,1761573533114,196.0,0.00014959,2]
[392500359,1761573541111,196.0,0.00014959,2]
[392500360,1761573553648,204.7,0.00015621,3]
[392500361,1761573556764,196.0,0.00014959,2]
[392500362,1761573564078,614.15,0.00015621,3]
[392500363,1761573564771,196.0,0.00014959,2]
[392500365,1761573580660,196.0,0.00014959,2]
[392500366,1761573588811,196.0,0.00014959,2]
[392500368,1761573604520,196.0,0.00014959,2]
[392500370,1761573611388,944.0,0.00030136,120]
[392500371,1761573612463,196.0,0.00014959,2]
[392500372,1761573628067,196.0,0.00014959,2]
[392500373,1761573636994,196.0,0.00014959,2]
[392500374,1761573652353,196.0,0.00014959,2]
[392500375,1761573660392,196.0,0.00014959,2]
[392500376,1761573676819,1472.7946332,0.00014993,2]
[392500377,1761573685895,196.0,0.00014959,2]
[392500378,1761573701258,196.0,0.00014959,2]
[392500379,1761573710296,196.0,0.00014959,2]
[392500380,1761573726203,196.0,0.00014959,2]
[392500381,1761573734906,196.0,0.00014959,2]
[392500382,1761573750619,196.0,0.00014959,2]
[392500383,1761573759206,196.0,0.00014959,2]
[392500385,1761573774764,196.0,0.00014959,2]
[392500386,1761573782951,196.0,0.00014959,2]
[392500387,1761573798570,196.0,0.00014959,2]
[392500388,1761573806668,196.0,0.00014959,2]
[392500389,1761573823251,196.0,0.00014959,2]
[392500390,1761573831429,196.0,0.00014959,2]
[392500391,1761573847396,196.0,0.00014959,2]
[392500392,1761573855448,196.0,0.00014959,2]
[392500393,1761573871910,196.0,0.00014959,2]
[392500394,1761573879784,196.0,0.00014959,2]
[392500395,1761573895707,196.0,0.00014959,2]
[392500396,1761573903446,196.0,0.00014959,2]
[392500398,1761573921556,196.0,0.00014959,2]
[392500399,1761573929961,196.0,0.00014959,2]
[392500400,1761573946336,196.0,0.00014959,2]
[392500539,1761573954545,196.0,0.00014959,2]
[392500672,1761573970916,196.0,0.00014959,2]
[392500673,1761573975060,409.4,0.00015621,3]
[392500674,1761573993665,196.0,0.00014959,2]
[392500675,1761574016745,196.0,0.00014959,2]
[392500818,1761574039359,196.0,0.00014959,2]
[392500863,1761574062562,196.0,0.00014959,2]
[392500868,1761574085528,196.0,0.00014959,2]
[392500870,1761574109364,196.0,0.00014959,2]
[392500871,1761574110885,1000.0,0.00015,2]
[392500872,1761574132303,196.0,0.00014959,2]
[392500888,1761574143451,220.18,0.00015,2]
[392500894,1761574155996,1472.7946332,0.00014967,2]
[392500898,1761574179886,196.0,0.00014959,2]
[392500899,1761574203500,196.0,0.00014959,2]
[392500908,1761574226466,196.0,0.00014959,2]
[392500941,1761574232024,-196.0,0.0001511,2]
[392500943,1761574232033,-845.65178104,0.00015118,2]
[392500945,1761574232049,-627.14285216,0.00015118,2]
[392500947,1761574232059,-241.51022994,0.00015526,2]
[392500949,1761574232069,-196.0,0.00015537,2]
[392500951,1761574232079,-300.0,0.00015623,2]
[392500953,1761574232088,-500.0,0.00015624,2]
[392500955,1761574232098,-500.0,0.00015624,2]
[392500957,1761574232107,-189.75137597,0.00015624,2]
[392500959,1761574232117,-369.91201545,0.00015624,2]
[392500961,1761574232126,-500.0,0.00015624,2]
[392500963,1761574232136,-106.78709381,0.00015624,2]
[392500967,1761574232165,-393.21290619,0.00015624,2]
[392500969,1761574232175,-500.0,0.00015624,2]
[392500971,1761574232184,-500.0,0.00015624,2]
[392500973,1761574232194,-240.32298131,0.00015624,2]
[392501020,1761574237712,-403.28968764,0.00015623,2]
[392501029,1761574237863,-289.0267149,0.00015623,2]
[392501030,1761574237874,-500.0,0.00015623,2]
[392501031,1761574237883,-500.0,0.00015623,2]
[392501032,1761574237892,-500.0,0.00015623,2]
[392501033,1761574237902,-500.0,0.00015623,2]
[392501034,1761574237911,-500.0,0.00015623,2]
[392501035,1761574237920,-500.0,0.00015623,2]
[392501036,1761574237930,-500.0,0.00015623,2]
[392501037,1761574237939,-500.0,0.00015623,2]
[392501038,1761574237948,-255.34301887,0.00015623,2]
[392501040,1761574237958,-500.0,0.00015623,2]
[392501042,1761574237968,-245.50530757,0.00015623,2]
[392501043,1761574237977,-500.0,0.00015623,2]
[392501044,1761574237986,-500.0,0.00015623,2]
[392501046,1761574237995,-500.0,0.00015623,2]
[392501048,1761574238004,-500.0,0.00015623,2]
[392501050,1761574238014,-500.0,0.00015623,2]
[392501051,1761574238023,-500.0,0.00015623,2]
[392501052,1761574238033,-500.0,0.00015623,2]
[392501053,1761574238044,-500.0,0.00015623,2]
[392501054,1761574238053,-500.0,0.00015623,2]
[392501055,1761574238063,-500.0,0.00015623,2]
[392501057,1761574238073,-500.0,0.00015623,2]
[392501059,1761574238083,-500.0,0.00015623,2]
[392501061,1761574238092,-500.0,0.00015623,2]
[392501063,1761574238102,-500.0,0.00015623,2]
[392501065,1761574238111,-500.0,0.00015623,2]
[392501067,1761574238121,-500.0,0.00015623,2]
[392501069,1761574238130,-500.0,0.00015623,2]
[392501071,1761574238140,-500.0,0.00015623,2]
[392501073,1761574238149,-500.0,0.00015623,2]
[392501075,1761574238158,-500.0,0.00015623,2]
[392501077,1761574238167,-500.0,0.00015623,2]
[392501079,1761574238177,-500.0,0.00015623,2]
[392501081,1761574238186,-500.0,0.00015623,2]
[392501083,1761574238196,-500.0,0.00015623,2]
[392501085,1761574238206,-500.0,0.00015623,2]
[392501087,1761574238216,-529.2002967,0.00015623,2]
[392501089,1761574238227,-500.0,0.00015623,2]
[392501091,1761574238237,-500.0,0.00015623,2]
[392501093,1761574238246,-500.0,0.00015623,2]
[392501095,1761574238256,-500.0,0.00015623,2]
[392501097,1761574238267,-500.0,0.00015623,2]
[392501099,1761574238276,-500.0,0.00015623,2]
[392501101,1761574238285,-500.0,0.00015623,2]
[392501103,1761574238298,-500.0,0.00015623,2]
[392501105,1761574238308,-500.0,0.00015623,2]
[392501107,1761574238317,-227.98165902,0.0001563,2]
[392501109,1761574238326,-319.5133153,0.00015631,2]
[392501124,1761574238640,-1163.32,0.00015631,2]
[392501165,1761574240135,-1518.23988228,0.00015631,2]
[392501166,1761574240148,-10589.57162349,0.00015631,2]
[392501425,1761574246189,-2534.8264845,0.00015631,2]
[392501426,1761574246201,-5615.02255705,0.00015631,2]
[392501520,1761574280588,190.75,0.000149,2]
[392501536,1761574366257,340.315021,0.00016,3]
[392501545,1761574391570,370.20737667,0.00014855,2]
[392501546,1761574412674,285.857267,0.00016,3]
[392501548,1761574447493,196.0,0.00014959,2]
[392501549,1761574471119,196.0,0.00014959,2]
[392501550,1761574483162,326.70242,0.00018027,14]
[392501551,1761574483683,326.70242,0.00017644,14]
[392501552,1761574483819,326.70242,0.0001726,14]
[392501553,1761574486977,326.70242,0.0001568,3]
[392501554,1761574488651,326.70242,0.00018,20]
[392501555,1761574494027,196.0,0.00014959,2]
[392501556,1761574518225,196.0,0.00014959,2]
[392501557,1761574541685,196.0,0.00014959,2]
[392501559,1761574565163,196.0,0.00014959,2]
[392501560,1761574587855,196.0,0.00014959,2]
[392501561,1761574611808,196.0,0.00014959,2]
[392501562,1761574614020,271.549197,0.00014567,2]
[392501564,1761574634791,196.0,0.00014959,2]
[392501566,1761574658285,196.0,0.00014959,2]
[392501570,1761574681731,196.0,0.00014959,2]
[392501572,1761574704553,196.0,0.00014959,2]
[392501573,1761574727709,196.0,0.00014959,2]
[392501575,1761574751266,196.0,0.00014959,2]
[392501576,1761574774857,196.0,0.00014959,2]
[392501577,1761574797866,196.0,0.00014959,2]
[392501578,1761574820678,196.0,0.00014959,2]
[392501579,1761574844343,196.0,0.00014959,2]
[392501581,1761574866828,196.0,0.00014959,2]
[392501582,1761574889725,196.0,0.00014959,2]
[392501583,1761574913003,196.0,0.00014959,2]
[392501595,1761574936080,196.0,0.00014959,2]
[392501600,1761574959728,196.0,0.00014959,2]
[392501601,1761574962686,217.801613,0.00018027,14]
[392501602,1761574963151,217.801613,0.00017644,14]
[392501603,1761574963478,217.801613,0.0001726,14]
[392501604,1761574965451,217.801613,0.00018,20]
[392501605,1761574968717,217.801613,0.0001568,3]
[392501677,1761574984379,196.0,0.00014959,2]
[392501681,1761575006223,3085.45401894,0.00030136,120]
[392501682,1761575007676,196.0,0.00014959,2]
[392501683,1761575014622,228.685813,0.00016,3]
[392501684,1761575031637,196.0,0.00014959,2]
[392501685,1761575047187,275.0,0.00018,9]
[392501687,1761575056406,196.0,0.00014959,2]
[392501688,1761575079857,196.0,0.00014959,2]
[392501691,1761575103155,196.0,0.00014959,2]
[392501695,1761575127580,196.0,0.00014959,2]
[392501698,1761575151685,196.0,0.00014959,2]
[392501699,1761575155865,500.059584,0.00013699,2]
[392501701,1761575175218,196.0,0.00014959,2]
[392501702,1761575198855,196.0,0.00014959,2]
[392501704,1761575222277,196.0,0.00014959,2]
[392501705,1761575245874,196.0,0.00014959,2]
[392501708,1761575268333,196.0,0.00014959,2]
[392501711,1761575292483,196.0,0.00014959,2]
[392501717,1761575315913,196.0,0.00014959,2]
[392501718,1761575339802,196.0,0.00014959,2]
[392501734,1761575362934,196.0,0.00014959,2]
[392501739,1761575385950,196.0,0.00014959,2]
[392501740,1761575408985,196.0,0.00014959,2]
[392501741,1761575411739,5373.0,0.00030137,120]
[392501760,1761575432064,5000.0,0.0001825,9]
[392501778,1761575432228,-196.0,0.0001511,2]
[392501801,1761575432352,-1443.33874054,0.0001512,2]
[392501804,1761575432393,-5000.0,0.000153,2]
[392501805,1761575432403,-196.0,0.00015484,2]
[392501806,1761575432413,-300.0,0.00015529,2]
[392501808,1761575432422,-159.58716131,0.0001553,2]
[392501809,1761575432431,-500.0,0.0001553,2]
[392501811,1761575432441,-500.0,0.0001553,2]
[392501813,1761575432453,-500.0,0.0001553,2]
[392501814,1761575432463,-500.0,0.0001553,2]
[392501815,1761575432472,-500.0,0.0001553,2]
[392501816,1761575432481,-392.1333663,0.0001553,2]
[392501817,1761575432490,-500.0,0.0001553,2]
[392501818,1761575432499,-97.64329833,0.0001553,2]
[392501852,1761575440317,-326.90723242,0.0001553,2]
[392501853,1761575440327,-575.2467901,0.0001553,2]
[392501854,1761575440337,-245.59340813,0.0001553,2]
[392501855,1761575440347,-383.06051854,0.0001553,2]
[392501856,1761575440357,-44323.1920508,0.00015531,2]
[392502045,1761575446249,-1146.19,0.00015531,2]
[392502050,1761575446309,-2124.02332459,0.00015531,2]
[392502052,1761575446320,-50054.7537081,0.00015531,2]
[392502204,1761575454856,5000.0,0.0001825,9]
[392502205,1761575478493,5000.0,0.0001825,9]
[392502207,1761575502824,196.0,0.00014959,2]
[392502208,1761575526122,196.0,0.00014959,2]
[392502209,1761575549053,196.0,0.00014959,2]
[392502210,1761575568792,217.801613,0.00018175,14]
[392502211,1761575569207,217.801613,0.00017866,14]
[392502212,1761575569520,217.801613,0.00017556,14]
[392502213,1761575572943,196.0,0.00014959,2]
[392502214,1761575581003,217.801613,0.00018,20]
[392502215,1761575587336,217.801613,0.00015562,3]
[392502216,1761575618760,233.67946525,0.0003013,120]
[392502217,1761575620913,265.275544,0.0001588,3]
[392502219,1761575680338,2022.4,0.00016,14]
[392502221,1761575793588,196.0,0.00014959,2]
[392502222,1761575816859,196.0,0.00014959,2]
[392502223,1761575840162,196.0,0.00014959,2]
[392502224,1761575863239,196.0,0.00014959,2]
[392502225,1761575886263,196.0,0.00014959,2]
[392502226,1761575909133,196.0,0.00014959,2]
[392502227,1761575928090,174.241291,0.0001588,3]
[392502228,1761575932078,196.0,0.00014959,2]
[392502229,1761575955240,196.0,0.00014959,2]
[392502230,1761575977927,196.0,0.00014959,2]
[392502231,1761576000808,196.0,0.00014959,2]
[392502233,1761576023969,196.0,0.00014959,2]
[392502234,1761576048874,196.0,0.00014959,2]
[392502238,1761576166304,167.271639,0.0001588,3]
[392502480,1761576215513,254.664522,0.0001588,3]
[392502481,1761576269385,1438.80981127,0.00014867,2]
[392502482,1761576292790,196.0,0.00014959,2]
[392502496,1761576515069,1438.80981127,0.00014867,2]
[392502497,1761576538224,1438.80981126,0.00014913,2]
[392502498,1761576564991,1438.80981126,0.00014913,2]
[392502499,1761576588342,1438.80981126,0.00014913,2]
[392502501,1761576612398,1438.80981126,0.00014913,2]
[392502573,1761576632302,-519.8455,0.00015063,2]
[392502579,1761576632334,-918.96431126,0.00015063,2]
[392502581,1761576632343,-196.0,0.0001511,2]
[392502582,1761576632352,-245.82291264,0.00015331,2]
[392502583,1761576632362,-198.06390335,0.0001543,2]
[392502584,1761576632371,-196.3786306,0.0001543,2]
[392502585,1761576632385,-269.39450342,0.0001543,2]
[392502586,1761576632395,-300.0,0.0001543,2]
[392502587,1761576632404,-223.0,0.0001543,2]
[392502588,1761576632416,-142.5234901,0.00015431,2]
[392502919,1761576739835,-368.7622323,0.000151,2]
[392502920,1761576739860,-196.0,0.0001511,2]
[392502921,1761576739883,-300.0,0.00015276,2]
[392502922,1761576739906,-196.0,0.00015276,2]
[392502923,1761576739931,-102471.45621687,0.00015277,2]
[392502924,1761576739955,-388.96547004,0.00015298,2]
[392502925,1761576739979,-1410.03361504,0.00015354,2]
[392502926,1761576740003,-5178.28959116,0.0001543,2]
[392502927,1761576740029,-332.96896713,0.0001543,2]
[392502928,1761576740053,-500.0,0.0001543,2]
[392502929,1761576740078,-485.95535613,0.0001543,2]
[392502930,1761576740102,-500.0,0.0001543,2]
[392502931,1761576740126,-500.0,0.0001543,2]
[392502932,1761576740151,-500.0,0.0001543,2]
[392502933,1761576740174,-500.0,0.0001543,2]
[392502934,1761576740200,-500.0,0.0001543,2]
[392502935,1761576740223,-500.0,0.0001543,2]
[392502936,1761576740247,-500.0,0.0001543,2]
[392502937,1761576740271,-500.0,0.0001543,2]
[392502938,1761576740296,-500.0,0.0001543,2]
[392502939,1761576740319,-500.0,0.0001543,2]
[392502940,1761576740342,-500.0,0.0001543,2]
[392502941,1761576740521,-500.0,0.0001543,2]
[392502942,1761576740547,-581.57542109,0.0001543,2]
[392502943,1761576740572,-500.0,0.0001543,2]
[392502944,1761576740600,-500.0,0.0001543,2]
[392502945,1761576740625,-499.99999999,0.0001543,2]
[392502946,1761576740650,-80089.99313025,0.00015431,2]
[392502947,1761576744609,700.2,0.00015421,3]
[392502948,1761576765341,176.549697,0.0001825,9]
[392502949,1761576767107,176.549697,0.00016,3]
[392502951,1761576814999,252.64337,0.0001825,9]
[392502952,1761576817527,252.64337,0.00016,3]
[392502956,1761576947863,196.0,0.00014959,2]
[392502957,1761576972397,196.0,0.00014959,2]
[392502958,1761576995255,196.0,0.00014959,2]
[392502959,1761577018639,196.0,0.00014959,2]
[392502961,1761577042731,196.0,0.00014959,2]
[392502963,1761577363165,162.425721,0.0001825,9]
[392502964,1761577368218,162.425721,0.00016,3]
[392502965,1761577411280,232.431901,0.0001825,9]
[392502966,1761577416820,232.431901,0.00016,3]
[392502967,1761577490630,489.531132,0.00014326,2]
[392503048,1761577832393,-196.0,0.0001511,2]
[392503050,1761577832403,-318.9814764,0.00015135,2]
[392503052,1761577832415,-1062.85146634,0.00015135,2]
[392503054,1761577832425,-1200.0,0.0001523,2]
[392503057,1761577832435,-300.0,0.0001523,2]
[392503058,1761577832445,-300.0,0.0001523,2]
[392503060,1761577832454,-300.0,0.0001523,2]
[392503061,1761577832463,-300.0,0.0001523,2]
[392503063,1761577832474,-684.24853366,0.0001523,2]
[392503066,1761577832490,-515.75146634,0.0001523,2]
[392503068,1761577832499,-926.06600541,0.00015231,2]
[392503099,1761577832907,-4624.983028,0.00015231,2]
[392503102,1761577832922,-871.21080004,0.00015231,2]
[392503182,1761577840606,-4803.18346306,0.00015231,2]
[392503184,1761577840616,-386.51201609,0.00015298,2]
[392503186,1761577840626,-522.0996543,0.00015309,2]
[392503188,1761577840635,-191.87295522,0.00015322,2]
[392503190,1761577840645,-500.0,0.00015328,2]
[392503192,1761577840654,-300.89784163,0.00015328,2]
[392503194,1761577840663,-500.0,0.00015328,2]
[392503196,1761577840673,-581.44219427,0.00015328,2]
[392503198,1761577840682,-500.0,0.00015328,2]
[392503200,1761577840692,-272.73085072,0.00015328,2]
[392503202,1761577840701,-156.93201907,0.00015328,2]
[392503204,1761577840710,-500.0,0.00015328,2]
[392503206,1761577840719,-500.0,0.00015328,2]
[392503208,1761577840733,-500.0,0.00015328,2]
[392503210,1761577840742,-231.44403707,0.00015328,2]
[392503212,1761577840752,-500.0,0.00015328,2]
[392503214,1761577840762,-505.37587532,0.00015328,2]
[392503217,1761577840771,-474.87536011,0.00015328,2]
[392503219,1761577840781,-290.71963058,0.0001533,2]
[392503221,1761577840791,-199.20789959,0.0001533,2]
[392503223,1761577840804,-10538.70620297,0.00015331,2]
[392503224,1761577840816,-310.0,0.00015331,2]
[392503237,1761577843512,-2361.57660984,0.00015331,2]
[392503247,1761577846502,-11734.9952352,0.00015331,2]
[392503248,1761577846513,-19808.99999998,0.00015331,2]
[392503257,1761577962778,186.78958,0.0001825,9]
[392503258,1761577967997,186.78958,0.00016,3]
[392503259,1761578011028,267.296686,0.0001825,9]
[392503260,1761578016855,267.296686,0.00016,3]
[392503266,1761578131549,1621.32,0.00030137,120]
[392503267,1761578140610,1004.86,0.0001825,9]
[392503273,1761578452888,187.5,0.00025263,120]
[392503274,1761578453542,187.5,0.00025263,120]
[392503275,1761578456188,187.5,0.00025263,120]
[392503298,1761578681254,199.6,0.00030137,120]
[392503313,1761578752855,187.5,0.00025242,120]
[392503314,1761578755841,187.5,0.00025242,120]
[392503315,1761578756611,187.5,0.00025242,120]
[392503316,1761578757771,187.5,0.00025242,120]
[392503378,1761579033478,-168.354034,0.00015068,2]
[392503379,1761579033488,-1354.19628388,0.00015074,2]
[392503380,1761579033499,-196.0,0.0001511,2]
[392503382,1761579033509,-173.67728227,0.00015157,2]
[392503384,1761579033518,-300.0,0.00015229,2]
[392503386,1761579033528,-261.84478368,0.00015229,2]
[392503434,1761579040943,-19.15521632,0.00015229,2]
[392503435,1761579040953,-300.0,0.00015229,2]
[392503436,1761579040963,-37.15947563,0.00015229,2]
[392503437,1761579040979,-367.08091844,0.00015229,2]
[392503487,1761579046798,-680.90757339,0.00015229,2]
[392503488,1761579046818,-114.85203254,0.00015229,2]
[392503489,1761579046828,-203.5037414,0.0001523,2]
[392503490,1761579046840,-58.32422606,0.0001523,2]
[392503491,1761579046852,-441.67577394,0.0001523,2]
[392503492,1761579046863,-500.0,0.0001523,2]
[392503493,1761579046874,-189.75137597,0.0001523,2]
[392503494,1761579046884,-500.0,0.0001523,2]
[392503495,1761579046894,-224.28881687,0.0001523,2]
[392503496,1761579046904,-260.03675477,0.0001523,2]
[392503497,1761579046914,-500.0,0.0001523,2]
[392503498,1761579046923,-500.0,0.0001523,2]
[392503499,1761579046932,-219.43059557,0.0001523,2]
[392503500,1761579046941,-500.0,0.0001523,2]
[392503501,1761579046951,-500.0,0.0001523,2]
[392503502,1761579046960,-500.0,0.0001523,2]
[392503503,1761579046969,-500.0,0.0001523,2]
[392503504,1761579046979,-500.0,0.0001523,2]
[392503505,1761579046988,-369.91201545,0.0001523,2]
[392503506,1761579046997,-4541.54632626,0.00015231,2]
[392503507,1761579049665,306.15408259,0.00025242,120]
[392503508,1761579050248,306.15408259,0.00025242,120]
[392503509,1761579051097,306.15408259,0.00025242,120]
[392503510,1761579052300,306.15408259,0.00025242,120]
[392503511,1761579093096,324.5,0.00015221,3]
[392503512,1761579103978,162.25,0.00015221,3]
[392503513,1761579114987,243.37,0.00015221,3]
[392503514,1761579126152,730.15,0.00015221,3]
[392503515,1761579172261,168.110622,0.0001825,9]
[392503516,1761579176696,1000.0,0.00014335,2]
[392503517,1761579219851,240.567017,0.0001825,9]
[392503519,1761579301053,517.184569,0.00013699,2]
[392503520,1761579349818,153.0770413,0.00025263,120]
[392503521,1761579350395,153.0770413,0.00025263,120]
[392503522,1761579351787,153.0770413,0.00025263,120]
[392503523,1761579353066,153.0770413,0.00025263,120]
[392503524,1761579483799,211.96,0.00015095,3]
[392503525,1761579484084,211.96,0.00015095,3]
[392503526,1761579522471,196.0,0.00014959,2]
[392503527,1761579545930,196.0,0.00014959,2]
[392503528,1761579569636,196.0,0.00014959,2]
[392503530,1761579591723,196.0,0.00014959,2]
[392503531,1761579614986,196.0,0.00014959,2]
[392503532,1761579638346,196.0,0.00014959,2]
[392503534,1761579661018,196.0,0.00014959,2]
[392503535,1761579684155,196.0,0.00014959,2]
[392503536,1761579707388,196.0,0.00014959,2]
[392503537,1761579717309,486.74,0.00015221,3]
[392503538,1761579730995,196.0,0.00014959,2]
[392503539,1761579754047,196.0,0.00014959,2]
[392503540,1761579767326,187.5,0.00025263,120]
[392503541,1761579768605,187.5,0.00025263,120]
[392503542,1761579769473,187.5,0.00025263,120]
[392503543,1761579770832,187.5,0.00025263,120]
[392503544,1761579776649,1971.1926384,0.0001825,9]
[392503610,1761580199188,196.0,0.00014959,2]
[392503611,1761580213993,187.5,0.00025263,120]
[392503612,1761580214806,187.5,0.00025263,120]
[392503613,1761580215985,187.5,0.00025263,120]
[392503614,1761580222121,196.0,0.00014959,2]
[392503615,1761580222433,160.66,0.00015121,3]
[392503616,1761580230631,196.0,0.00014959,2]
[392503635,1761580231831,-196.0,0.0001511,2]
[392503636,1761580231844,-1339.65521525,0.00015117,2]
[392503638,1761580231854,-220.06714615,0.0001513,2]
[392503743,1761580233203,482.03,0.00015121,3]
[392504016,1761580245984,197.71471549,0.00014979,2]
[392504017,1761580246004,-197.71471549,0.0001513,2]
[392504018,1761580246014,-300.0,0.0001513,2]
[392504019,1761580246024,-1120.0,0.0001513,2]
[392504020,1761580246034,-13094.54467545,0.00015131,2]
[392504021,1761580246045,-18910.68697879,0.00015131,2]
[392504022,1761580246056,-20586.08075537,0.00015131,2]
[392504023,1761580246067,-423.923407,0.00015131,2]
[392504024,1761580253929,6446.31944008,0.0001498,2]
[392504025,1761580254300,1030.03,0.00015121,3]
[392504026,1761580262223,4877.93573145,0.0001498,2]
[392504027,1761580265591,515.01,0.00015121,3]
[392504028,1761580270239,300.0,0.00014979,2]
[392504029,1761580276611,1374.96,0.00015121,3]
[392504030,1761580280600,300.0,0.00015,2]
[392504031,1761580287378,794.58,0.00015121,3]
[392504032,1761580292795,300.0,0.00015,2]
[392504033,1761580293529,196.0,0.00014959,2]
[392504034,1761580298559,397.29,0.00015121,3]
[392504035,1761580303496,300.0,0.00015,2]
[392504036,1761580309380,198.65,0.00015121,3]
[392504037,1761580314610,300.0,0.00015,2]
[392504038,1761580316804,196.0,0.00014959,2]
[392504039,1761580320229,1523.5,0.00015121,3]
[392504040,1761580325332,300.0,0.00015,2]
[392504041,1761580331223,761.75,0.00015121,3]
[392504042,1761580335258,300.0,0.00015,2]
[392504043,1761580335476,300.0,0.00015,2]
[392504044,1761580340013,196.0,0.00014959,2]
[392504045,1761580342086,380.87,0.00015121,3]
[392504046,1761580347387,300.0,0.00015,2]
[392504047,1761580347506,300.0,0.00015,2]
[392504048,1761580353065,190.44,0.00015121,3]
[392504049,1761580358813,300.0,0.00015,2]
[392504050,1761580359177,300.0,0.00015,2]
[392504051,1761580362399,196.0,0.00014959,2]
[392504052,1761580363644,232.00549,0.0001825,9]
[392504053,1761580363835,571.34,0.00015121,3]
[392504054,1761580367961,232.00549,0.00016,3]
[392504055,1761580370158,300.0,0.00015,2]
[392504056,1761580370655,196.0,0.00014959,2]
[392504057,1761580385996,196.0,0.00014959,2]
[392504058,1761580394083,241.51022994,0.00014971,2]